bitfinex/quotes_BTCUSD_20251217
["timestamp","ask_amount","ask_price","bid_price","bid_amount"]
[1765957425020,0.2496,87185.0,87184.0,0.04066]
[1765957425021,0.01146986,87185.0,87184.0,0.04066]
[1765957425236,0.01146959,87187.0,87184.0,0.01683]
[1765957425237,0.22939588,87186.0,87184.0,0.01683]
[1765957425450,0.22939588,87186.0,87185.0,0.00327]
[1765957425670,0.22939588,87186.0,87179.0,0.01147065]
[1765957425671,0.01147052,87180.0,87178.0,0.00928]
[1765957425911,0.24088246,87180.0,87178.0,0.00928]
[1765957426140,0.01147091,87177.0,87172.0,0.01147157]
[1765957426823,0.01147091,87177.0,87175.0,0.0182]
[1765957426997,0.01147131,87174.0,87169.0,0.02075196]
[1765957427226,0.01147091,87177.0,87169.0,0.02075196]
[1765957427227,0.01219,87175.0,87174.0,0.001]
[1765957427772,0.01147065,87179.0,87174.0,0.01147131]
[1765957427973,0.01147104,87176.0,87175.0,0.001]
[1765957428385,0.05309104,87176.0,87175.0,0.001]
[1765957429543,0.01219,87175.0,87174.0,0.001]
[1765957429735,0.01147131,87174.0,87170.0,0.0182]
[1765957430162,0.10974093,87175.0,87170.0,0.02967183]
[1765957430374,0.03671131,87174.0,87165.0,0.25004124]
[1765957430632,0.03671144,87173.0,87168.0,0.01147209]
[1765957430806,0.01147131,87174.0,87170.0,0.01147183]
[1765957431149,0.01147144,87173.0,87170.0,0.01147183]
[1765957431350,0.01147144,87173.0,87170.0,0.01247183]
[1765957431984,0.03671144,87173.0,87170.0,0.001]
[1765957432396,0.01147144,87173.0,87170.0,0.001]
[1765957432603,0.01147144,87173.0,87169.0,0.01147196]
[1765957432998,0.02524,87178.0,87169.0,0.01147196]
[1765957432999,0.00011282,87180.0,87174.0,0.01147131]
[1765957433285,0.01219,87177.0,87172.0,0.01147157]
[1765957433495,0.04890091,87177.0,87174.0,0.01147131]
[1765957433695,0.03743,87177.0,87174.0,0.01147131]
[1765957434094,0.01219,87177.0,87174.0,0.01147131]
[1765957434278,0.02524,87176.0,87174.0,0.01147131]
[1765957434884,0.02524,87176.0,87174.0,0.001]
[1765957436712,0.35712333,87175.0,87174.0,0.002]
[1765957437146,0.47212372,87175.0,87174.0,0.002]
[1765957437557,0.47212372,87175.0,87170.0,0.01147183]
[1765957437558,0.01147144,87173.0,87170.0,0.01147183]
[1765957437766,0.01147157,87172.0,87169.0,0.01147196]
[1765957438187,0.01147144,87173.0,87170.0,0.24090856]
[1765957438391,0.01147144,87173.0,87170.0,0.01147183]
[1765957438801,0.24090045,87173.0,87170.0,0.01147183]
[1765957439061,0.24090045,87173.0,87169.0,0.01147196]
[1765957439260,0.01147157,87172.0,87168.0,0.01147209]
[1765957439469,0.01147157,87172.0,87169.0,0.01147196]
[1765957439688,0.01147131,87174.0,87171.0,0.0114717]
[1765957440143,0.0114717,87171.0,87168.0,0.01147209]
[1765957440519,0.01147157,87172.0,87169.0,0.01147196]
[1765957440698,0.01147144,87173.0,87170.0,0.01147183]
[1765957441129,0.24090324,87172.0,87168.0,0.24091174]
[1765957441311,0.0114717,87171.0,87168.0,0.01247209]
[1765957441551,0.24090782,87171.0,87168.0,0.001]
[1765957441747,0.01638,87169.0,87168.0,0.001]
[1765957441942,0.04162,87169.0,87168.0,0.001]
[1765957442343,0.01638,87169.0,87168.0,0.001]
[1765957442544,0.24091408,87168.0,87165.0,0.01147249]
[1765957442755,0.25310079,87170.0,87165.0,0.24092095]
[1765957443271,0.24091389,87169.0,87165.0,0.01147249]
[1765957443680,0.24091389,87169.0,87165.0,0.01247249]
[1765957444144,0.24091389,87169.0,87165.0,0.01147249]
[1765957444363,0.01147223,87167.0,87164.0,0.02967262]
[1765957444570,0.01147223,87167.0,87165.0,0.001]
[1765957445555,0.27115726,87166.0,87165.0,0.001]
[1765957445758,0.01147381,87155.0,87152.0,0.00928]
[1765957445974,0.22947885,87154.0,87153.0,0.0182]
[1765957446800,0.0114742,87152.0,87146.0,0.01147499]
[1765957447002,0.24095831,87152.0,87151.0,0.0182]
[1765957447795,0.0114742,87152.0,87151.0,0.0182]
[1765957448819,0.01147381,87155.0,87151.0,0.0182]
[1765957449078,0.01268,87156.0,87153.0,0.01147407]
[1765957449277,0.01268,87156.0,87153.0,0.24095313]
[1765957449733,0.01268,87156.0,87154.0,0.22947708]
[1765957451315,0.02415367,87156.0,87154.0,0.002]
[1765957451571,0.35988318,87155.0,87154.0,0.002]
[1765957451719,0.38618661,87155.0,87154.0,0.002]
[1765957452553,0.01268,87148.0,87147.0,0.24097033]
[1765957452766,0.01268,87156.0,87150.0,0.01147446]
[1765957452980,0.51607444,87160.0,87154.0,0.001]
[1765957452981,0.01147354,87157.0,87154.0,0.001]
[1765957453758,0.01147381,87155.0,87151.0,0.01147433]
[1765957453990,0.0114742,87152.0,87149.0,0.0114746]
[1765957454724,0.24096019,87152.0,87148.0,0.01147473]
[1765957455336,0.01147407,87153.0,87150.0,0.01147446]
[1765957455980,0.01147367,87156.0,87153.0,0.01147407]
[1765957457026,0.24095453,87154.0,87150.0,0.01147446]
[1765957457272,0.24095453,87154.0,87149.0,0.0114746]
[1765957457471,0.0114742,87152.0,87149.0,0.0114746]
[1765957457675,0.24095453,87154.0,87150.0,0.01147446]
[1765957458667,0.01147407,87153.0,87150.0,0.24096384]
[1765957458919,0.0114742,87152.0,87149.0,0.0114746]
[1765957459109,0.0114742,87152.0,87150.0,0.001]
[1765957459444,0.24096084,87152.0,87146.0,0.01147499]
[1765957459643,0.24096384,87150.0,87147.0,0.01147486]
[1765957460240,0.01147433,87151.0,87147.0,0.24097032]
[1765957460427,0.01147433,87151.0,87148.0,0.01147473]
[1765957461549,0.01147433,87151.0,87147.0,0.001]
[1765957461550,0.04171,87148.0,87147.0,0.001]
[1765957461774,0.04171,87148.0,87132.0,0.22953479]
[1765957461775,0.04171,87148.0,87123.0,0.03070282]
[1765957461776,0.02889,87128.0,87123.0,0.03070282]
[1765957461995,0.0114771,87130.0,87125.0,0.01147776]
[1765957461996,0.01147723,87129.0,87125.0,0.01147776]
[1765957462213,0.24101533,87132.0,87127.0,0.01147749]
[1765957462697,0.22954143,87131.0,87127.0,0.01147749]
[1765957463123,0.2410184,87131.0,87127.0,0.01147749]
[1765957463334,0.2410184,87131.0,87125.0,0.002]
[1765957463335,0.01147736,87128.0,87125.0,0.002]
[1765957463552,0.01147736,87128.0,87127.0,0.001]
[1765957463769,0.01147763,87126.0,87123.0,0.01040287]
[1765957464426,0.08607976,87139.0,87129.0,0.01147723]
[1765957464642,0.01147683,87132.0,87129.0,0.01147723]
[1765957465095,0.0114767,87133.0,87129.0,0.01147723]
[1765957465344,0.0114767,87133.0,87130.0,0.0114771]
[1765957466827,0.0114767,87133.0,87130.0,0.0124771]
[1765957467864,0.0114767,87133.0,87130.0,0.24201777]
[1765957468073,0.0114767,87133.0,87130.0,0.0124771]
[1765957468609,0.00149018,87131.0,87130.0,0.0134771]
[1765957469302,0.00149018,87131.0,87130.0,0.001]
[1765957469666,0.00149018,87131.0,87130.0,0.002]
[1765957469865,0.00149018,87131.0,87130.0,0.05372287]
[1765957470067,0.00149018,87131.0,87130.0,0.06749539]
[1765957470274,0.00149018,87131.0,87130.0,0.1697986]
[1765957470883,0.00149018,87131.0,87130.0,0.02853287]
[1765957471088,0.00149018,87131.0,87130.0,0.01234287]
[1765957471529,0.00149018,87131.0,87130.0,0.00361287]
[1765957472022,0.02628018,87131.0,87130.0,0.00361287]
[1765957472221,0.00149018,87131.0,87130.0,0.00361287]
[1765957473806,0.04320018,87131.0,87130.0,0.00361287]
[1765957474010,0.12927994,87131.0,87130.0,0.00361287]
[1765957474270,0.12927994,87131.0,87130.0,0.002]
[1765957481756,0.04320018,87131.0,87130.0,0.002]
[1765957482380,0.05470018,87131.0,87130.0,0.002]
[1765957484315,0.00149018,87131.0,87130.0,0.002]
[1765957484660,0.00149018,87131.0,87130.0,0.0427]
[1765957485424,0.00149018,87131.0,87130.0,0.04431287]
[1765957487826,0.00149018,87131.0,87130.0,0.1593886]
[1765957488028,0.00149018,87131.0,87130.0,0.04439061]
[1765957488193,0.00149018,87131.0,87130.0,0.15946634]
[1765957488613,0.00149018,87131.0,87130.0,0.04439061]
[1765957490297,0.00149018,87131.0,87130.0,0.07509343]
[1765957490518,0.00149018,87131.0,87130.0,0.04439061]
[1765957492085,0.00149018,87131.0,87130.0,0.15946634]
[1765957496982,0.00149018,87131.0,87130.0,0.17766634]
[1765957497162,0.00149018,87131.0,87130.0,0.06259061]
[1765957500350,0.00149018,87131.0,87130.0,0.17766634]
[1765957501755,0.00149018,87131.0,87130.0,0.06259061]
[1765957503009,0.00149018,87131.0,87130.0,0.00369061]
[1765957503220,0.00149018,87131.0,87130.0,0.02189061]
[1765957503859,0.00149018,87131.0,87130.0,0.00369061]
[1765957508251,0.00149018,87131.0,87130.0,0.04210061]
[1765957509360,0.00149018,87131.0,87130.0,0.15717634]
[1765957510229,0.00149018,87131.0,87130.0,0.21198365]
[1765957510468,0.00149018,87131.0,87130.0,0.50942853]
[1765957510670,0.00149018,87131.0,87130.0,0.44787634]
[1765957511010,0.00149018,87131.0,87130.0,0.44687634]
[1765957511433,0.00149018,87131.0,87130.0,0.44987634]
[1765957512032,0.00149018,87131.0,87130.0,0.44887634]
[1765957512261,0.00149018,87131.0,87130.0,0.45187634]
[1765957513646,0.00149018,87131.0,87130.0,0.47007634]
[1765957514230,0.00149018,87131.0,87130.0,0.13779634]
[1765957514435,0.00149018,87131.0,87130.0,0.15599634]
[1765957514655,0.00149018,87131.0,87130.0,0.04092061]
[1765957514895,0.00149018,87131.0,87130.0,0.08199584]
[1765957515050,0.00149018,87131.0,87130.0,0.10537584]
[1765957515441,0.00149018,87131.0,87130.0,0.10237584]
[1765957515645,0.00149018,87131.0,87130.0,0.09937584]
[1765957515868,0.00149018,87131.0,87130.0,0.10137584]
[1765957516042,0.00149018,87131.0,87130.0,0.10337584]
[1765957517297,0.00149018,87131.0,87130.0,0.07999584]
[1765957517761,0.00149018,87131.0,87130.0,0.03892061]
[1765957518100,0.00149018,87131.0,87130.0,0.02072061]
[1765957518310,0.00149018,87131.0,87130.0,0.03892061]
[1765957518565,0.00149018,87131.0,87130.0,0.02072061]
[1765957518856,0.00149018,87131.0,87130.0,0.00569061]
[1765957519628,0.00149018,87131.0,87130.0,0.03649768]
[1765957519833,0.00149018,87131.0,87130.0,0.00569061]
[1765957522630,0.00149018,87131.0,87130.0,0.02389061]
[1765957524846,0.00149018,87131.0,87130.0,0.01989061]
[1765957525247,0.00149018,87131.0,87130.0,0.02289061]
[1765957526029,0.2310296,87131.0,87130.0,0.02289061]
[1765957526232,0.2542796,87131.0,87130.0,0.02289061]
[1765957526434,0.2310296,87131.0,87130.0,0.02289061]
[1765957526634,0.2310296,87131.0,87130.0,0.00469061]
[1765957526950,0.00149018,87131.0,87130.0,0.00469061]
[1765957532925,0.00149018,87131.0,87130.0,0.23423267]
[1765957535997,0.00149018,87131.0,87130.0,0.00469061]
[1765957545509,0.02476018,87131.0,87130.0,0.00469061]
[1765957545784,0.04097018,87131.0,87130.0,0.00307774]
[1765957546575,0.15597057,87131.0,87130.0,0.00307774]
[1765957546778,0.15597057,87131.0,87093.0,0.10349766]
[1765957546779,0.15597057,87131.0,87091.0,0.000252]
[1765957546780,0.26912221,87092.0,87091.0,0.000252]
[1765957546954,0.28732221,87092.0,87091.0,0.000252]
[1765957547153,0.25245878,87094.0,87091.0,0.008832]
[1765957547154,0.01148184,87094.0,87091.0,0.008832]
[1765957547357,0.0182,87092.0,87091.0,0.047062]
[1765957547716,0.22964001,87093.0,87091.0,0.047062]
[1765957548030,0.22964001,87093.0,87091.0,0.000252]
[1765957548304,0.22964001,87093.0,87091.0,0.001252]
[1765957548604,0.22964001,87093.0,87091.0,0.000252]
[1765957549421,0.24098001,87093.0,87091.0,0.000252]
[1765957549611,0.26425001,87093.0,87091.0,0.000252]
[1765957549811,0.24098001,87093.0,87091.0,0.000252]
[1765957550111,0.24111566,87096.0,87092.0,0.01148211]
[1765957550313,0.27064274,87100.0,87097.0,0.02382]
[1765957550314,0.01148105,87100.0,87097.0,0.02382]
[1765957550536,0.01148105,87100.0,87098.0,0.01524]
[1765957550737,0.02327,87109.0,87104.0,0.01148052]
[1765957550738,0.01148013,87107.0,87104.0,0.01148052]
[1765957550936,0.01148,87108.0,87104.0,0.01148052]
[1765957551113,0.24107323,87111.0,87110.0,0.01147973]
[1765957551114,0.0182,87111.0,87110.0,0.01147973]
[1765957551293,0.0182,87111.0,87104.0,0.01148052]
[1765957551294,0.0182,87111.0,87109.0,0.01036]
[1765957551494,0.01147973,87110.0,87107.0,0.01148013]
[1765957551694,0.0182,87112.0,87108.0,0.2295978]
[1765957552296,0.002,87111.0,87108.0,0.2295978]
[1765957552700,0.002,87111.0,87110.0,0.01147973]
[1765957553142,0.002,87111.0,87110.0,0.06509828]
[1765957553377,0.002,87111.0,87110.0,0.0513226]
[1765957553577,0.01147881,87117.0,87116.0,0.01036]
[1765957554298,0.01147855,87119.0,87116.0,0.01036]
[1765957554541,0.22956814,87121.0,87116.0,0.01036]
[1765957554542,0.22956814,87121.0,87116.0,0.04482894]
[1765957554806,0.01147842,87120.0,87117.0,0.01147881]
[1765957555359,0.01147855,87119.0,87116.0,0.04482894]
[1765957555517,0.24104991,87119.0,87116.0,0.01036]
[1765957556757,0.2295763,87118.0,87116.0,0.01036]
[1765957556995,0.24106161,87115.0,87111.0,0.0114796]
[1765957557317,0.01147881,87117.0,87112.0,0.01147947]
[1765957557544,0.01147881,87117.0,87114.0,0.01147921]
[1765957558499,0.01147881,87117.0,87113.0,0.01147934]
[1765957558717,0.01147894,87116.0,87113.0,0.01147934]
[1765957560463,0.22958685,87113.0,87110.0,0.00161287]
[1765957560816,0.24106619,87113.0,87110.0,0.00161287]
[1765957562117,0.24105006,87119.0,87118.0,0.01036]
[1765957562279,0.24105006,87119.0,87118.0,0.0256]
[1765957562487,0.24105006,87119.0,87118.0,0.01036]
[1765957564029,0.24205006,87119.0,87118.0,0.01036]
[1765957564206,0.01147868,87118.0,87115.0,0.01147907]
[1765957564407,0.01247855,87119.0,87115.0,0.01147907]
[1765957564612,0.001,87119.0,87116.0,0.24105593]
[1765957564970,0.001,87119.0,87118.0,0.04104]
[1765957565142,0.001,87119.0,87118.0,0.17150302]
[1765957565439,0.00126988,87124.0,87123.0,0.2787705]
[1765957566922,0.00126988,87124.0,87123.0,0.27914689]
[1765957567301,0.00126988,87124.0,87123.0,0.28075976]
[1765957568843,0.00126988,87124.0,87123.0,0.28275976]
[1765957569803,0.00126988,87124.0,87123.0,0.02847926]
[1765957570042,0.01661988,87124.0,87123.0,0.00237639]
[1765957570353,0.04110988,87124.0,87123.0,0.00337639]
[1765957570565,0.01661988,87124.0,87123.0,0.00337639]
[1765957570864,0.00126988,87124.0,87123.0,0.23293689]
[1765957571057,0.00126988,87124.0,87123.0,0.23193689]
[1765957571294,0.00126988,87124.0,87123.0,0.25642689]
[1765957571566,0.00126988,87124.0,87123.0,0.27914689]
[1765957571777,0.00126988,87124.0,87123.0,0.28014689]
[1765957572333,0.00126988,87124.0,87123.0,0.27914689]
[1765957572814,0.00126988,87124.0,87123.0,0.28175976]
[1765957573192,0.00126988,87124.0,87123.0,0.39683549]
[1765957574783,0.00126988,87124.0,87123.0,0.39583549]
[1765957575058,0.00126988,87124.0,87123.0,0.39883549]
[1765957579277,0.00126988,87124.0,87123.0,0.28375976]
[1765957579455,0.00126988,87124.0,87123.0,0.39883549]
[1765957580066,0.00126988,87124.0,87123.0,0.68953549]
[1765957581230,0.00126988,87124.0,87123.0,0.68653549]
[1765957581574,0.00126988,87124.0,87123.0,0.69053549]
[1765957587292,0.00126988,87124.0,87123.0,0.57545976]
[1765957587535,0.00126988,87124.0,87123.0,0.70873549]
[1765957590251,0.00126988,87124.0,87123.0,0.41803549]
[1765957590452,0.00126988,87124.0,87123.0,0.39983549]
[1765957601074,0.00126988,87124.0,87123.0,0.28475976]
[1765957605176,0.00126988,87124.0,87123.0,0.39983549]
[1765957607050,0.00126988,87124.0,87123.0,0.24371976]
[1765957607445,0.00126988,87124.0,87123.0,0.28376976]
[1765957608661,0.00126988,87124.0,87123.0,0.39884549]
[1765957610528,0.00126988,87124.0,87123.0,0.26024976]
[1765957610724,0.00126988,87124.0,87123.0,0.00598926]
[1765957611578,0.00126988,87124.0,87123.0,0.00398926]
[1765957611891,0.00126988,87124.0,87123.0,0.00598926]
[1765957612412,0.00126988,87124.0,87123.0,0.00398926]
[1765957612559,0.00126988,87124.0,87123.0,0.00198926]
[1765957612760,0.00126988,87124.0,87123.0,0.00298926]
[1765957613329,0.00126988,87124.0,87123.0,0.23254976]
[1765957615227,0.00126988,87124.0,87123.0,0.27259976]
[1765957616808,0.00126988,87124.0,87123.0,0.38767549]
[1765957617217,0.00126988,87124.0,87123.0,0.27259976]
[1765957617431,0.00126988,87124.0,87123.0,0.38767549]
[1765957622205,0.00126988,87124.0,87123.0,0.27259976]
[1765957627095,0.00126988,87124.0,87123.0,0.00298926]
[1765957627346,0.27195775,87124.0,87123.0,0.00137639]
[1765957627502,0.04239988,87124.0,87123.0,0.00137639]
[1765957628025,0.04239988,87124.0,87123.0,0.23093689]
[1765957628329,0.00126988,87124.0,87123.0,0.22993689]
[1765957639930,0.00126988,87124.0,87123.0,0.27048689]
[1765957640098,0.00126988,87124.0,87123.0,0.24554689]
[1765957640699,0.00126988,87124.0,87123.0,0.22993689]
[1765957644376,0.00126988,87124.0,87123.0,0.24554689]
[1765957644558,0.00126988,87124.0,87123.0,0.27048689]
[1765957645210,0.00126988,87124.0,87123.0,0.38717549]
[1765957647825,0.00126988,87124.0,87123.0,0.38817549]
[1765957648690,0.00126988,87124.0,87123.0,0.38917549]
[1765957652444,0.00126988,87124.0,87123.0,0.11906499]
[1765957652584,0.00126988,87124.0,87123.0,0.00237639]
[1765957652585,0.28417775,87124.0,87123.0,0.00237639]
[1765957652789,0.31496522,87124.0,87123.0,0.00237639]
[1765957653992,0.39917814,87124.0,87123.0,0.00237639]
[1765957654219,0.39917814,87124.0,87123.0,0.00037639]
[1765957654670,0.34148809,87124.0,87123.0,0.00037639]
[1765957654878,0.64294797,87124.0,87123.0,0.00037639]
[1765957655086,0.66775222,87124.0,87123.0,0.00037639]
[1765957655358,0.66775222,87124.0,87105.0,0.01816]
[1765957655359,0.2296053,87106.0,87105.0,0.01816]
[1765957655586,0.24108231,87108.0,87095.0,0.01036]
[1765957655587,0.22963167,87096.0,87095.0,0.01036]
[1765957655794,0.22963694,87094.0,87093.0,0.01816]
[1765957656603,0.26873694,87094.0,87093.0,0.01816]
[1765957656742,0.24495694,87094.0,87093.0,0.01816]
[1765957657132,0.22963694,87094.0,87093.0,0.01816]
[1765957657583,0.22838994,87094.0,87093.0,0.01816]
[1765957658703,0.22838994,87094.0,87093.0,0.01916]
[1765957659551,0.22838994,87094.0,87093.0,0.001]
[1765957659552,0.26868994,87094.0,87093.0,0.001]
[1765957659761,0.22838994,87094.0,87093.0,0.001]
[1765957660391,0.26868994,87094.0,87093.0,0.001]
[1765957660597,0.32600028,87094.0,87093.0,0.001]
[1765957661395,0.32326738,87094.0,87093.0,0.001]
[1765957661662,0.32326738,87094.0,87091.0,0.000252]
[1765957661663,0.25688221,87092.0,87091.0,0.000252]
[1765957661873,0.3967626,87092.0,87091.0,0.000252]
[1765957662088,0.28176221,87092.0,87091.0,0.000252]
[1765957662259,0.33907255,87092.0,87091.0,0.000252]
[1765957662672,0.28176221,87092.0,87091.0,0.000252]
[1765957663229,0.33907255,87092.0,87091.0,0.000252]
[1765957663913,0.34107255,87092.0,87091.0,0.000252]
[1765957665138,0.28376221,87092.0,87091.0,0.000252]
[1765957666954,0.34107255,87092.0,87091.0,0.000252]
[1765957667296,0.28376221,87092.0,87091.0,0.000252]
[1765957672078,0.34107255,87092.0,87091.0,0.000252]
[1765957675657,0.34107255,87092.0,87091.0,0.00036494]
[1765957677859,0.28376221,87092.0,87091.0,0.00036494]
[1765957679656,0.23164221,87092.0,87091.0,0.00036494]
[1765957679870,0.25652221,87092.0,87091.0,0.00036494]
[1765957680312,0.27194221,87092.0,87091.0,0.00036494]
[1765957682238,0.27194221,87092.0,87075.0,0.0004]
[1765957682240,0.56916441,87076.0,87075.0,0.0004]
[1765957682449,0.59388691,87076.0,87075.0,0.00049476]
[1765957683385,0.60463314,87076.0,87075.0,0.00049476]
[1765957683601,0.59388691,87076.0,87075.0,0.00049476]
[1765957683810,0.56916441,87076.0,87075.0,0.00049476]
[1765957684464,0.59393344,87076.0,87075.0,0.00049476]
[1765957685374,0.6046875,87076.0,87075.0,0.00049476]
[1765957687803,0.6046875,87076.0,87075.0,0.00099887]
[1765957692026,0.03552309,87076.0,87075.0,0.1160746]
[1765957692203,0.0309397,87081.0,87077.0,0.11507573]
[1765957692204,0.01148395,87078.0,87077.0,0.11507573]
[1765957692687,0.01148395,87078.0,87075.0,0.00049476]
[1765957692961,0.03612395,87078.0,87075.0,0.00049476]
[1765957693322,0.04039,87076.0,87075.0,0.00049476]
[1765957693537,0.10856464,87076.0,87075.0,4.76e-06]
[1765957693728,0.39926464,87076.0,87075.0,4.76e-06]
[1765957693930,0.42403367,87076.0,87075.0,4.76e-06]
[1765957694920,0.36662349,87076.0,87075.0,4.76e-06]
[1765957695102,0.07692349,87076.0,87075.0,4.76e-06]
[1765957695307,0.05215446,87076.0,87075.0,4.76e-06]
[1765957696505,0.05315446,87076.0,87075.0,4.76e-06]
[1765957707012,0.05315851,87076.0,87075.0,4.76e-06]
[1765957707350,0.04239,87076.0,87075.0,4.76e-06]
[1765957707552,0.04239,87076.0,87075.0,0.00050887]
[1765957711939,0.04239,87076.0,87075.0,0.00212174]
[1765957711940,0.002,87076.0,87075.0,0.00212174]
[1765957712140,0.04239,87076.0,87075.0,0.00050887]
[1765957712490,0.15739039,87076.0,87075.0,0.00050887]
[1765957715849,0.04239,87076.0,87075.0,0.00050887]
[1765957719413,0.05384,87076.0,87075.0,0.00050887]
[1765957721439,0.11125018,87076.0,87075.0,0.00050887]
[1765957721838,0.05384,87076.0,87075.0,0.00050887]
[1765957722599,0.24120646,87063.0,87054.0,0.22612555]
[1765957722965,0.01148619,87061.0,87058.0,0.01148659]
[1765957724124,0.24121173,87061.0,87056.0,0.01148685]
[1765957724333,0.24121465,87060.0,87055.0,0.01148699]
[1765957724943,0.01148659,87058.0,87055.0,0.01148699]
[1765957725369,0.01148633,87060.0,87056.0,0.01148685]
[1765957725563,0.01148619,87061.0,87058.0,0.01248659]
[1765957725930,0.03543,87064.0,87061.0,0.01148619]
[1765957726130,0.01148553,87066.0,87063.0,0.01148593]
[1765957726355,0.0114854,87067.0,87064.0,0.0114858]
[1765957726822,0.24118477,87071.0,87070.0,0.11507573]
[1765957727022,0.24118701,87070.0,87066.0,0.01965553]
[1765957727180,0.24118968,87069.0,87066.0,0.00817]
[1765957727378,0.24118968,87069.0,87056.0,0.01148685]
[1765957727379,0.25370544,87061.0,87056.0,0.01148685]
[1765957727586,0.22972544,87061.0,87056.0,0.01148685]
[1765957727764,0.01148606,87062.0,87056.0,0.01148685]
[1765957727765,0.03543,87059.0,87056.0,0.01148685]
[1765957727966,0.01145,87059.0,87056.0,0.01148685]
[1765957728170,0.01148672,87057.0,87054.0,0.00011296]
[1765957728482,0.25371718,87056.0,87054.0,0.00011296]
[1765957728823,0.02398,87055.0,87054.0,0.00011296]
[1765957729184,0.02398,87055.0,87054.0,0.00077483]
[1765957729481,0.02398,87055.0,87054.0,0.00177483]
[1765957730510,0.04064,87055.0,87054.0,0.00277483]
[1765957731299,0.04064,87055.0,87054.0,0.00177483]
[1765957731681,0.04064,87055.0,87054.0,0.00277483]
[1765957732428,0.01148659,87058.0,87054.0,0.00277483]
[1765957732612,0.22971964,87063.0,87057.0,0.24121902]
[1765957732831,0.22971964,87063.0,87058.0,0.01148659]
[1765957733098,0.22971964,87063.0,87058.0,0.24121655]
[1765957733288,0.11500039,87072.0,87066.0,0.11507573]
[1765957733289,0.01148527,87068.0,87066.0,0.11507573]
[1765957733514,0.01148527,87068.0,87061.0,0.00817]
[1765957733515,0.2297187,87063.0,87061.0,0.00817]
[1765957733858,0.22972641,87061.0,87058.0,0.1166886]
[1765957734053,0.22972641,87061.0,87058.0,0.00161287]
[1765957734256,0.22972818,87060.0,87058.0,0.00161287]
[1765957735406,0.01148619,87061.0,87058.0,0.00161287]
[1765957736678,0.01148619,87061.0,87058.0,0.01309946]
[1765957737019,0.01148593,87063.0,87059.0,0.01148646]
[1765957737583,0.01145,87065.0,87061.0,0.24120853]
[1765957737786,0.01148553,87066.0,87061.0,0.24120853]
[1765957738008,0.01148553,87066.0,87063.0,0.01148593]
[1765957738218,0.01148553,87066.0,87065.0,0.00031514]
[1765957739412,0.0114854,87067.0,87066.0,0.11507573]
[1765957739809,0.0114854,87067.0,87064.0,0.0114858]
[1765957740981,0.51679415,87080.0,87064.0,0.0114858]
[1765957740982,0.01148382,87079.0,87072.0,0.22969373]
[1765957741168,0.22967081,87082.0,87080.0,0.11507573]
[1765957741502,0.22967081,87082.0,87078.0,0.22967782]
[1765957741697,0.22967081,87082.0,87074.0,0.01148448]
[1765957741698,0.2296765,87079.0,87074.0,0.01148448]
[1765957741900,0.01148435,87075.0,87072.0,0.00161287]
[1765957742101,0.03546435,87075.0,87072.0,0.00161287]
[1765957742301,0.01148408,87077.0,87076.0,0.01546]
[1765957742508,0.24115404,87082.0,87078.0,0.01148395]
[1765957742816,0.01148342,87082.0,87079.0,0.01148382]
[1765957743016,0.01148329,87083.0,87079.0,0.24115827]
[1765957743421,0.01145,87084.0,87080.0,0.01148369]
[1765957743647,0.001,87082.0,87081.0,0.01148356]
[1765957744254,0.001,87082.0,87081.0,0.41923365]
[1765957744465,0.001,87082.0,87081.0,0.40545338]
[1765957745186,0.01148171,87095.0,87092.0,0.00947]
[1765957745327,0.01148131,87098.0,87095.0,0.01148171]
[1765957745529,0.01148131,87098.0,87094.0,0.01148184]
[1765957745530,0.01148145,87097.0,87094.0,0.01148184]
[1765957745729,0.01148158,87096.0,87093.0,0.01148197]
[1765957745952,0.01148158,87096.0,87092.0,0.00947]
[1765957745953,0.24111639,87095.0,87092.0,0.00947]
[1765957746153,0.22963899,87094.0,87092.0,0.00947]
[1765957746588,0.22963899,87094.0,87087.0,0.23912447]
[1765957746589,0.22965276,87088.0,87087.0,0.00947]
[1765957747467,0.01148316,87084.0,87081.0,0.04556643]
[1765957747683,0.01148316,87084.0,87081.0,0.02126643]
[1765957747883,0.24113817,87087.0,87082.0,0.241152]
[1765957748949,0.24114283,87086.0,87082.0,0.01148342]
[1765957749151,0.01148303,87085.0,87081.0,0.01509643]
[1765957749359,0.26423655,87084.0,87081.0,0.01409643]
[1765957749579,0.01148316,87084.0,87081.0,0.01409643]
[1765957749803,0.01148316,87084.0,87082.0,0.001]
[1765957750027,0.25359283,87086.0,87082.0,0.001]
[1765957750028,0.01245,87086.0,87085.0,0.22966067]
[1765957750234,0.01245,87086.0,87083.0,0.01148329]
[1765957750235,0.02309,87096.0,87091.0,0.22964318]
[1765957750410,0.01148145,87097.0,87094.0,0.22963447]
[1765957750411,0.01816,87097.0,87094.0,0.22963447]
[1765957750893,0.02393105,87100.0,87094.0,0.22963447]
[1765957751096,0.03457118,87099.0,87096.0,0.01148158]
[1765957751699,0.03457118,87099.0,87092.0,0.01148211]
[1765957751700,0.01148171,87095.0,87092.0,0.01148211]
[1765957751920,0.26420511,87096.0,87092.0,0.01148211]
[1765957752720,0.03457171,87095.0,87092.0,0.01148211]
[1765957753607,0.01148184,87094.0,87091.0,0.2411246]
[1765957753845,0.03897,87092.0,87091.0,0.2411246]
[1765957754431,0.01245,87093.0,87091.0,0.2411246]
[1765957754635,0.01148171,87095.0,87091.0,0.2411246]
[1765957754891,0.01148171,87095.0,87092.0,0.01148211]
[1765957755094,0.01148158,87096.0,87092.0,0.01148211]
[1765957755270,0.03457158,87096.0,87093.0,0.01148197]
[1765957759744,0.03457158,87096.0,87093.0,0.24112003]
[1765957759946,0.02309,87096.0,87093.0,0.24112003]
[1765957760733,0.03457158,87096.0,87092.0,0.01148211]
[1765957760912,0.01148171,87095.0,87092.0,0.01148211]
[1765957761318,0.26420763,87095.0,87092.0,0.01148211]
[1765957762155,0.26420763,87095.0,87081.0,0.12324573]
[1765957762156,0.26420763,87095.0,87076.0,0.02296593]
[1765957762157,0.03897,87077.0,87076.0,0.02296593]
[1765957762373,0.01245,87079.0,87078.0,0.22967913]
[1765957762844,0.03457329,87083.0,87079.0,0.01148382]
[1765957763026,0.01245,87084.0,87080.0,0.01148369]
[1765957763406,0.01148329,87083.0,87080.0,0.01148369]
[1765957763789,0.24115098,87083.0,87080.0,0.01148369]
[1765957764129,0.03457329,87083.0,87079.0,0.24115843]
[1765957764376,0.24115371,87082.0,87079.0,0.01148382]
[1765957764551,0.24115371,87082.0,87080.0,0.001]
[1765957764749,0.24115371,87082.0,87080.0,0.002]
[1765957765187,0.24115371,87082.0,87080.0,0.001]
[1765957766050,0.22967386,87080.0,87079.0,0.001]
[1765957766853,0.24115755,87080.0,87076.0,0.01148422]
[1765957767297,0.24116222,87079.0,87075.0,0.01148435]
[1765957767499,0.01148382,87079.0,87075.0,0.24116947]